bitfinex/quotes_SOLUSD_20240613
["timestamp","ask_amount","ask_price","bid_price","bid_amount"]
[1718254334362,8.28,152.4,152.34,8.28]
[1718254334530,8.28,152.4,152.35,8.28]
[1718254335439,0.17,152.43,152.33,0.34]
[1718254335640,8.28,152.39,152.34,8.28]
[1718254335949,8.28,152.39,152.33,0.17]
[1718254336148,8.28,152.39,152.34,8.28]
[1718254336326,8.28,152.38,152.33,8.45]
[1718254337228,8.28,152.39,152.33,0.17]
[1718254337552,8.28,152.39,152.34,8.28]
[1718254338243,8.28,152.39,152.33,0.17]
[1718254338437,8.28,152.39,152.34,8.28]
[1718254339643,21.8068,152.44,152.35,8.28]
[1718254339835,20.0,152.43,152.35,24.5675]
[1718254340039,8.28,152.4,152.35,24.5675]
[1718254342559,20.0,152.43,152.35,24.5675]
[1718254342752,8.28,152.41,152.35,24.5675]
[1718254344350,8.28,152.41,152.36,8.28]
[1718254345549,8.28,152.42,152.36,8.28]
[1718254347147,8.28,152.42,152.37,8.28]
[1718254349554,8.28,152.42,152.36,0.17]
[1718254349780,8.28,152.41,152.36,0.17]
[1718254349942,8.28,152.41,152.35,24.9075]
[1718254350856,8.28,152.41,152.35,16.6275]
[1718254351160,8.28,152.39,152.35,16.2875]
[1718254351956,8.28,152.4,152.35,16.2875]
[1718254354756,0.17,152.44,152.35,16.2875]
[1718254354957,8.28,152.4,152.35,16.2875]
[1718254355340,8.28,152.41,152.35,24.5675]
[1718254356463,8.28,152.4,152.35,24.5675]
[1718254357155,8.28,152.41,152.35,24.5675]
[1718254357661,8.28,152.41,152.36,8.28]
[1718254357857,8.28,152.41,152.35,16.2875]
[1718254358059,20.0,152.44,152.35,16.2875]
[1718254358244,8.28,152.38,152.35,16.2875]
[1718254358442,8.28,152.38,152.31,15.1847]
[1718254358646,16.7145,152.43,152.32,8.28]
[1718254358847,8.28,152.38,152.33,8.28]
[1718254359345,8.28,152.4,152.35,8.28]
[1718254359550,8.28,152.41,152.36,8.28]
[1718254359954,8.28,152.41,152.33,0.17]
[1718254360264,8.28,152.41,152.33,0.68]
[1718254360659,20.0,152.42,152.33,0.68]
[1718254360967,8.28,152.41,152.35,8.28]
[1718254361366,8.28,152.41,152.36,8.28]
[1718254362961,8.28,152.41,152.33,0.68]
[1718254363146,8.28,152.41,152.35,8.28]
[1718254363640,8.28,152.4,152.35,8.28]
[1718254363843,8.28,152.41,152.35,8.28]
[1718254364058,20.0,152.44,152.36,8.28]
[1718254364269,8.28,152.42,152.37,8.28]
[1718254366450,8.28,152.41,152.33,0.68]
[1718254366652,8.28,152.4,152.35,8.28]
[1718254366860,8.28,152.41,152.35,8.28]
[1718254367656,20.0,152.44,152.33,0.68]
[1718254367856,8.28,152.41,152.35,8.28]
[1718254368677,20.0,152.44,152.36,8.28]
[1718254368876,8.28,152.41,152.36,8.28]
[1718254369057,8.28,152.42,152.36,8.28]
[1718254369374,8.28,152.42,152.37,8.28]
[1718254369562,8.28,152.42,152.36,8.28]
[1718254373495,8.28,152.42,152.33,0.68]
[1718254373775,8.28,152.41,152.36,8.28]
[1718254375654,8.28,152.42,152.37,8.28]
[1718254376159,8.28,152.42,152.36,8.28]
[1718254376884,8.28,152.42,152.33,0.68]
[1718254377057,8.28,152.39,152.33,0.51]
[1718254377375,8.28,152.39,152.34,8.28]
[1718254377580,8.28,152.39,152.33,0.34]
[1718254377762,8.28,152.39,152.34,8.28]
[1718254378571,20.0,152.44,152.35,8.62]
[1718254378883,8.28,152.4,152.35,8.28]
[1718254380080,8.28,152.41,152.35,8.28]
[1718254380584,8.28,152.41,152.36,8.28]
[1718254380892,20.0,152.44,152.36,8.28]
[1718254381063,8.28,152.42,152.36,8.28]
[1718254382284,8.28,152.42,152.34,0.17]
[1718254382472,20.0,152.44,152.34,0.17]
[1718254382791,260.49837469,152.45,152.4,8.28]
[1718254383464,252.21837469,152.45,152.4,8.28]
[1718254384474,260.49837469,152.45,152.4,8.28]
[1718254386188,252.21837469,152.45,152.4,8.28]
[1718254386381,260.49837469,152.45,152.4,8.28]
[1718254388692,15.6053,152.47,152.41,0.34]
[1718254388880,8.28,152.46,152.41,0.34]
[1718254390392,8.28,152.45,152.4,8.62]
[1718254390695,8.28,152.44,152.39,8.45]
[1718254390990,15.6053,152.47,152.39,8.45]
[1718254391190,8.28,152.45,152.4,8.28]
[1718254392791,8.28,152.45,152.39,0.17]
[1718254392792,15.6053,152.47,152.36,15.6256]
[1718254392985,8.28,152.41,152.36,8.28]
[1718254393188,20.0,152.46,152.33,107.40522386]
[1718254393386,8.28,152.44,152.38,8.28]
[1718254393584,15.6053,152.47,152.33,107.40522386]
[1718254393783,8.28,152.46,152.41,8.28]
[1718254394175,8.28,152.45,152.4,8.28]
[1718254394397,8.28,152.46,152.4,8.28]
[1718254395091,8.28,152.45,152.4,8.28]
[1718254395872,15.6053,152.47,152.4,8.28]
[1718254396090,8.28,152.45,152.4,8.28]
[1718254396484,15.6053,152.47,152.4,8.28]
[1718254396807,8.28,152.46,152.4,8.28]
[1718254396979,8.28,152.45,152.4,8.28]
[1718254397315,8.28,152.45,152.39,8.79]
[1718254397482,8.28,152.44,152.39,8.62]
[1718254398193,8.28,152.44,152.39,8.28]
[1718254398698,8.28,152.43,152.38,8.28]
[1718254399108,8.28,152.43,152.37,8.45]
[1718254399492,8.28,152.43,152.38,8.45]
[1718254400289,8.28,152.44,152.39,8.28]
[1718254400503,8.28,152.44,152.38,0.17]
[1718254400813,8.28,152.44,152.37,0.17]
[1718254400814,8.28,152.44,152.39,8.28]
[1718254401184,8.28,152.43,152.37,8.62]
[1718254402882,8.28,152.43,152.36,15.8638]
[1718254403098,8.28,152.41,152.32,101.47526902]
[1718254403296,8.28,152.41,152.36,8.28]
[1718254403505,8.28,152.41,152.35,8.28]
[1718254403717,15.6053,152.47,152.37,8.28]
[1718254403889,8.28,152.42,152.37,8.28]
[1718254404086,8.28,152.42,152.36,8.28]
[1718254405109,6.1181,152.45,152.35,0.17]
[1718254405321,6.1181,152.45,152.35,8.45]
[1718254405322,8.28,152.4,152.35,8.45]
[1718254406490,8.28,152.4,152.35,0.17]
[1718254406824,8.28,152.4,152.35,8.45]
[1718254407189,8.28,152.37,152.27,61.50764673]
[1718254407409,8.28,152.37,152.31,8.28]
[1718254407791,15.4331,152.39,152.32,8.28]
[1718254408106,23.7131,152.39,152.33,8.28]
[1718254408413,8.28,152.36,152.31,8.28]
[1718254408595,15.4331,152.39,152.32,8.45]
[1718254408801,8.28,152.38,152.32,8.45]
[1718254409001,8.28,152.38,152.33,8.28]
[1718254409912,8.28,152.38,152.32,8.45]
[1718254410509,8.28,152.38,152.33,8.28]
[1718254410691,8.28,152.38,152.32,0.17]
[1718254410894,8.28,152.38,152.32,8.62]
[1718254411096,8.28,152.37,152.32,8.62]
[1718254413512,8.28,152.38,152.32,8.62]
[1718254413888,15.4331,152.39,152.32,8.62]
[1718254414107,8.28,152.38,152.32,8.62]
[1718254414506,8.28,152.38,152.32,0.34]
[1718254414703,8.28,152.38,152.33,8.28]
[1718254414897,15.4331,152.39,152.33,8.28]
[1718254415099,8.28,152.38,152.32,0.34]
[1718254415298,8.28,152.37,152.32,8.28]
[1718254415701,8.28,152.37,152.29,0.17]
[1718254415902,8.28,152.37,152.32,8.28]
[1718254416103,8.28,152.37,152.31,8.28]
[1718254416424,15.4331,152.39,152.29,0.51]
[1718254416713,8.28,152.35,152.29,0.51]
[1718254416919,8.28,152.35,152.3,8.28]
[1718254417117,8.28,152.35,152.28,20.0]
[1718254417725,8.28,152.33,152.28,8.28]
[1718254417910,15.4331,152.39,152.27,15.9882]
[1718254417911,8.28,152.34,152.29,8.28]
[1718254418532,15.4331,152.39,152.29,8.28]
[1718254418831,8.28,152.35,152.29,8.28]
[1718254420324,8.28,152.35,152.28,0.51]
[1718254420325,8.28,152.35,152.28,0.34]
[1718254420521,8.28,152.34,152.29,8.28]
[1718254420725,8.28,152.34,152.28,8.45]
[1718254421618,8.28,152.32,152.26,8.28]
[1718254422015,8.28,152.32,152.27,8.28]
[1718254422223,8.28,152.33,152.27,8.28]
[1718254422525,8.28,152.33,152.28,8.28]
[1718254422741,8.28,152.34,152.28,8.28]
[1718254423110,8.28,152.34,152.24,33.12]
[1718254423308,8.28,152.34,152.25,20.0]
[1718254423528,0.17,152.38,152.26,0.51]
[1718254423738,8.28,152.33,152.26,0.51]
[1718254424042,8.28,152.34,152.26,0.51]
[1718254424528,8.28,152.34,152.29,8.28]
[1718254425729,0.17,152.38,152.3,8.28]
[1718254425935,8.28,152.35,152.3,8.28]
[1718254426120,20.0,152.38,152.31,8.28]
[1718254426321,8.28,152.36,152.31,8.28]
[1718254426714,8.28,152.37,152.32,8.28]
[1718254426915,15.4331,152.39,152.33,8.28]
[1718254427120,8.28,152.38,152.33,8.28]
[1718254427639,23.7131,152.39,152.34,8.28]
[1718254427932,23.7131,152.39,152.29,0.17]
[1718254428231,8.28,152.38,152.29,20.68]
[1718254428426,8.28,152.37,152.31,8.28]
[1718254429618,15.4331,152.39,152.32,8.28]
[1718254429818,8.28,152.37,152.32,8.28]
[1718254430434,15.4331,152.39,152.29,20.68]
[1718254430614,8.28,152.38,152.33,8.28]
[1718254431137,8.28,152.38,152.29,20.68]
[1718254431439,8.28,152.37,152.32,8.28]
[1718254431649,8.28,152.37,152.31,0.51]
[1718254431826,15.4331,152.39,152.32,8.28]
[1718254432026,8.28,152.37,152.32,8.28]
[1718254432415,8.28,152.37,152.31,0.51]
[1718254432736,8.28,152.37,152.32,8.28]
[1718254433327,15.4331,152.39,152.32,8.28]
[1718254433523,15.4331,152.39,152.33,0.51]
[1718254433723,8.28,152.39,152.34,8.28]
[1718254435111,8.28,152.4,152.34,8.28]
[1718254435439,8.28,152.41,152.35,8.28]
[1718254435745,8.28,152.41,152.36,8.28]
[1718254435946,8.28,152.41,152.35,8.28]
[1718254436439,8.28,152.4,152.34,8.28]
[1718254436755,8.28,152.39,152.34,8.28]
[1718254437748,8.28,152.39,152.33,0.51]
[1718254437951,8.28,152.39,152.34,8.28]
[1718254438347,8.28,152.39,152.33,0.51]
[1718254438641,21.483,152.43,152.34,8.28]
[1718254438853,8.28,152.39,152.34,8.28]
[1718254439530,8.28,152.39,152.33,0.51]
[1718254439726,8.28,152.39,152.34,8.28]
[1718254440537,8.28,152.39,152.33,0.51]
[1718254440741,8.28,152.39,152.34,8.28]
[1718254441227,21.483,152.43,152.34,8.28]
[1718254441425,8.28,152.39,152.34,8.28]
[1718254441629,8.28,152.4,152.34,8.28]
[1718254442328,8.28,152.4,152.33,0.51]
[1718254442529,8.28,152.39,152.33,8.79]
[1718254442728,8.28,152.39,152.33,0.51]
[1718254442931,8.28,152.39,152.33,8.79]
[1718254443543,8.28,152.39,152.33,8.28]
[1718254444040,8.28,152.39,152.3,0.17]
[1718254444221,8.28,152.38,152.32,8.28]
[1718254445144,8.28,152.39,152.33,8.28]
[1718254445320,8.28,152.39,152.3,0.68]
[1718254445721,8.28,152.39,152.33,8.28]
[1718254446030,8.28,152.38,152.33,8.28]
[1718254446429,8.28,152.39,152.33,8.28]
[1718254447230,8.28,152.39,152.34,8.28]
[1718254447434,8.28,152.39,152.33,8.28]
[1718254447625,8.28,152.39,152.29,20.0]
[1718254447816,8.28,152.39,152.33,8.28]
[1718254448017,26.83124356,152.42,152.33,8.28]
[1718254448245,8.28,152.39,152.33,8.28]
[1718254448634,0.17,152.41,152.33,8.28]
[1718254448834,8.28,152.39,152.3,0.17]
[1718254449035,8.28,152.38,152.33,8.28]
[1718254450340,8.28,152.38,152.3,0.68]
[1718254450543,8.28,152.34,152.28,15.9448]
[1718254450726,8.28,152.34,152.28,24.2248]
[1718254450925,8.28,152.34,152.28,15.9448]
[1718254451134,8.28,152.35,152.29,8.28]
[1718254451336,22.7063,152.37,152.31,8.28]
[1718254451530,8.28,152.36,152.32,8.28]
[1718254451730,30.9863,152.37,152.32,8.28]
[1718254452151,30.9863,152.37,152.28,15.9448]
[1718254452447,22.7063,152.37,152.29,0.17]
[1718254452631,22.7063,152.37,152.3,8.28]
[1718254452942,8.28,152.36,152.31,8.28]
[1718254453241,8.28,152.35,152.3,8.28]
[1718254453447,8.28,152.36,152.31,8.28]
[1718254453626,16.1019,152.37,152.29,0.34]
[1718254453824,21.3815,152.41,152.34,8.28]
[1718254454021,21.3815,152.41,152.35,8.28]
[1718254454247,8.28,152.4,152.35,8.28]
[1718254455425,6.83177676,152.44,152.37,8.28]
[1718254455628,8.28,152.43,152.37,8.28]
[1718254455925,8.28,152.42,152.37,8.28]
[1718254456344,8.28,152.42,152.34,15.7137]
[1718254456555,8.28,152.41,152.36,8.28]
[1718254457132,8.28,152.42,152.36,8.28]
[1718254457331,8.28,152.42,152.37,8.28]
[1718254458135,8.28,152.41,152.36,8.28]
[1718254459929,8.28,152.4,152.35,8.28]
[1718254460438,8.28,152.39,152.34,8.28]
[1718254460634,0.17,152.43,152.34,8.28]
[1718254460837,8.28,152.4,152.34,8.28]
[1718254461046,8.28,152.4,152.33,0.34]
[1718254461245,8.28,152.4,152.35,8.28]
[1718254462372,8.28,152.4,152.33,0.34]
[1718254462531,8.28,152.4,152.35,8.28]
[1718254462732,8.28,152.41,152.35,8.28]
[1718254462933,8.28,152.41,152.3,15.7512]
[1718254463230,0.17,152.43,152.3,15.7512]
[1718254463231,8.28,152.4,152.35,8.28]
[1718254464056,0.17,152.43,152.35,8.28]
[1718254464252,8.28,152.4,152.35,8.28]
[1718254464442,8.28,152.41,152.35,8.28]
[1718254464843,8.28,152.41,152.36,8.28]
[1718254467744,0.34,152.44,152.36,8.28]
[1718254467944,8.28,152.41,152.36,8.28]
[1718254471962,8.28,152.41,152.35,8.28]
[1718254472457,8.28,152.4,152.31,0.17]
[1718254472643,8.28,152.4,152.34,8.28]
[1718254472841,8.28,152.4,152.35,8.28]
[1718254473144,20.0,152.44,152.37,8.28]
[1718254473557,8.28,152.43,152.38,8.28]
[1718254474046,6.8320796,152.44,152.38,8.28]
[1718254474376,8.28,152.43,152.38,8.28]
[1718254474554,6.8320796,152.44,152.38,8.28]
[1718254474864,8.28,152.43,152.38,8.28]
[1718254475769,6.8320796,152.44,152.38,8.28]
[1718254476142,8.28,152.43,152.38,8.28]
[1718254476548,6.8320796,152.44,152.38,8.28]
[1718254477260,8.28,152.43,152.38,8.28]
[1718254478066,8.28,152.44,152.38,8.28]
[1718254478368,6.83476553,152.44,152.38,8.28]
[1718254478567,8.28,152.43,152.38,8.28]
[1718254481370,6.83476553,152.44,152.38,8.28]
[1718254481766,8.28,152.43,152.38,8.28]
[1718254482270,8.28,152.43,152.36,15.9675]
[1718254482458,8.28,152.43,152.37,8.28]
[1718254483472,8.28,152.42,152.36,15.9675]
[1718254483669,8.28,152.42,152.32,15.6806]
[1718254483670,6.0641,152.42,152.32,15.6806]
[1718254483853,8.28,152.38,152.32,15.6806]
[1718254484051,8.28,152.38,152.32,23.9606]
[1718254484555,8.28,152.38,152.33,8.28]
[1718254484759,6.0641,152.42,152.33,8.28]
[1718254485059,8.28,152.39,152.34,8.28]
[1718254489267,8.28,152.37,152.32,15.6806]
[1718254489464,8.28,152.37,152.32,23.9606]
[1718254490150,8.28,152.38,152.33,8.28]
[1718254490577,8.28,152.39,152.34,8.28]
[1718254493176,8.28,152.38,152.32,15.1806]
[1718254493475,8.28,152.38,152.32,23.4606]
[1718254494276,8.28,152.38,152.32,15.1806]
[1718254494480,8.28,152.37,152.32,23.4606]
[1718254496559,6.83824141,152.41,152.33,8.28]
[1718254496759,8.28,152.38,152.33,8.28]
[1718254497884,8.28,152.38,152.32,23.4606]
[1718254500080,8.28,152.38,152.33,8.28]
[1718254500259,8.28,152.38,152.32,15.1806]
[1718254500465,8.28,152.38,152.33,8.28]
[1718254501482,8.28,152.37,152.32,23.4606]
[1718254502796,8.28,152.36,152.3,8.28]
[1718254503501,8.28,152.35,152.3,8.28]
[1718254504774,8.28,152.36,152.28,15.4819]
[1718254504982,8.28,152.36,152.31,8.28]
[1718254505695,0.17,152.39,152.31,8.28]
[1718254505988,8.28,152.37,152.31,8.28]
[1718254506378,8.28,152.37,152.29,0.17]
[1718254506583,8.28,152.36,152.3,8.28]
[1718254507094,8.28,152.36,152.31,8.28]
[1718254507466,8.28,152.36,152.3,8.28]
[1718254508491,8.28,152.36,152.29,0.17]
[1718254508678,8.28,152.35,152.29,8.28]
[1718254509784,27.34984558,152.39,152.29,8.28]
[1718254509999,8.28,152.35,152.29,8.28]
[1718254511079,0.17,152.38,152.19,2.431]
[1718254511290,8.28,152.32,152.27,8.28]
[1718254511488,8.28,152.31,152.24,15.939]
[1718254511688,8.28,152.31,152.26,8.28]
[1718254512792,8.28,152.31,152.24,15.939]
[1718254513127,8.28,152.31,152.26,8.28]
[1718254513416,16.6063,152.35,152.24,15.939]
[1718254513417,8.28,152.29,152.24,15.939]
[1718254513808,8.28,152.3,152.24,24.219]
[1718254514109,8.28,152.29,152.24,15.939]
[1718254514290,8.28,152.29,152.24,8.28]
[1718254515013,8.28,152.29,152.19,0.17]
[1718254515211,8.28,152.29,152.24,8.28]
[1718254515417,8.28,152.28,152.23,8.28]
[1718254515596,0.17,152.31,152.22,8.28]
[1718254515906,0.51,152.31,152.23,8.28]
[1718254516113,8.28,152.29,152.23,8.28]
[1718254516509,8.28,152.29,152.24,8.28]
[1718254516701,6.6651,152.32,152.25,8.28]
[1718254516919,8.28,152.3,152.25,8.28]
[1718254517223,8.28,152.3,152.22,0.34]
[1718254517224,8.28,152.3,152.24,8.28]
[1718254517793,8.28,152.3,152.22,0.34]
[1718254517996,8.28,152.29,152.24,8.28]
[1718254518323,8.28,152.3,152.24,8.28]
[1718254519089,8.28,152.28,152.23,8.28]
[1718254519600,8.28,152.29,152.24,8.28]
[1718254520596,8.28,152.28,152.23,8.28]
[1718254523208,8.28,152.28,152.19,0.17]
[1718254523510,8.28,152.28,152.23,8.28]
[1718254524904,8.28,152.28,152.19,0.68]
[1718254525090,8.28,152.28,152.23,8.28]
[1718254525688,9.85615982,152.31,152.19,0.68]
[1718254525893,9.85615982,152.31,152.25,8.28]
[1718254526198,14.9451,152.32,152.26,8.28]
[1718254526804,23.44281285,152.35,152.27,8.28]
[1718254527007,20.0,152.34,152.27,8.28]
[1718254527500,16.6063,152.35,152.26,0.17]
[1718254527708,24.8863,152.35,152.29,8.28]
[1718254528011,16.6063,152.35,152.29,8.28]
[1718254528396,24.8863,152.35,152.26,0.17]
[1718254528596,24.8863,152.35,152.29,8.28]
[1718254528797,8.28,152.34,152.26,0.17]
[1718254529015,8.28,152.34,152.28,8.28]
[1718254529196,16.6063,152.35,152.28,8.28]
[1718254529197,8.28,152.33,152.28,8.28]
[1718254529396,8.28,152.33,152.27,8.28]
[1718254529598,8.28,152.32,152.27,8.28]
[1718254530320,8.28,152.33,152.27,8.28]
[1718254530703,8.28,152.33,152.28,8.28]
[1718254531419,26.45941363,152.35,152.25,20.17]
[1718254531614,8.28,152.33,152.25,20.17]
[1718254532015,26.45941363,152.35,152.25,20.17]
[1718254532325,8.28,152.33,152.25,20.17]
[1718254532502,8.28,152.34,152.25,20.17]
[1718254533017,16.6063,152.35,152.26,0.34]
[1718254533194,8.28,152.34,152.27,0.17]
[1718254533391,8.28,152.33,152.27,0.17]
[1718254534007,8.28,152.32,152.23,21.6938]
[1718254534208,8.28,152.29,152.24,8.28]
[1718254534518,8.28,152.29,152.23,21.6938]
[1718254534899,8.28,152.29,152.24,8.28]
[1718254535529,9.85302032,152.31,152.19,21.9374]
[1718254535700,8.28,152.28,152.2,20.0]
[1718254536023,8.28,152.28,152.23,8.28]
[1718254536503,9.85302032,152.32,152.24,8.28]
[1718254536908,8.28,152.3,152.24,8.28]
[1718254539218,8.28,152.3,152.21,0.17]
[1718254539410,8.28,152.3,152.24,8.28]
[1718254539792,8.28,152.3,152.21,0.68]
[1718254539998,8.28,152.29,152.24,8.28]
[1718254540397,8.28,152.29,152.23,8.28]
[1718254540598,8.28,152.29,152.21,0.51]
[1718254540799,8.28,152.29,152.23,8.28]
[1718254541115,8.28,152.28,152.21,0.51]
[1718254541324,8.28,152.27,152.22,8.28]
[1718254541639,8.28,152.28,152.22,8.28]
[1718254543423,8.28,152.28,152.21,0.51]
[1718254543622,8.28,152.28,152.23,8.28]
[1718254545124,18.13552533,152.29,152.23,8.28]
[1718254545424,8.28,152.29,152.23,8.28]
[1718254546425,18.13552533,152.29,152.23,8.28]
[1718254547434,8.28,152.29,152.23,8.28]
[1718254548029,18.1359256,152.29,152.24,8.28]
[1718254548736,8.28,152.29,152.24,8.28]
[1718254549228,18.1359256,152.29,152.24,8.28]
[1718254549617,18.1359256,152.29,152.23,8.28]
[1718254550330,9.8559256,152.28,152.23,8.28]
[1718254550931,18.1359256,152.29,152.23,8.28]
[1718254551228,9.8559256,152.28,152.23,8.28]
[1718254551726,9.8559256,152.29,152.25,8.28]
[1718254552044,9.8559256,152.29,152.26,8.28]
[1718254552337,16.6063,152.35,152.26,8.28]
[1718254552338,9.8559256,152.3,152.26,8.28]
[1718254552911,9.8559256,152.3,152.21,0.51]
[1718254553112,9.8559256,152.3,152.26,8.28]
[1718254554538,9.85433043,152.3,152.26,8.28]
[1718254556541,8.28,152.32,152.26,8.28]
[1718254556714,8.28,152.31,152.24,15.7095]
[1718254556919,8.28,152.31,152.26,8.28]
[1718254557427,8.28,152.31,152.25,8.45]
[1718254558724,9.85489517,152.28,152.25,8.45]
[1718254558935,9.85489517,152.28,152.25,0.17]
[1718254559537,9.85489517,152.28,152.25,8.45]
[1718254559844,9.85489517,152.29,152.25,8.45]
[1718254560521,9.85489517,152.28,152.24,23.9895]
[1718254560722,9.85489517,152.28,152.24,15.7095]
[1718254560926,9.85489517,152.28,152.24,23.9895]
[1718254561726,9.85489517,152.28,152.25,8.28]
[1718254563341,9.85477613,152.29,152.25,8.28]
[1718254563852,9.85477613,152.27,152.25,8.28]
[1718254564250,9.85477613,152.27,152.23,0.17]
[1718254564473,9.85477613,152.27,152.21,0.17]
[1718254564748,9.85477613,152.25,152.2,15.9006]
[1718254565449,9.85477613,152.25,152.2,24.1806]
[1718254565847,9.85477613,152.25,152.21,8.28]
[1718254569756,9.85723156,152.25,152.21,8.28]
[1718254571249,9.85723156,152.25,152.17,0.17]
[1718254571564,9.85723156,152.25,152.2,8.28]
[1718254572447,9.85723156,152.25,152.21,8.28]
[1718254572853,9.85754411,152.25,152.21,8.28]
[1718254573359,9.85754411,152.25,152.22,8.28]
[1718254574052,9.85754411,152.25,152.17,20.68]
[1718254574251,9.85754411,152.25,152.2,8.28]
[1718254574556,9.85754411,152.25,152.21,8.28]
[1718254576848,9.85754411,152.25,152.2,8.28]
[1718254577045,9.85754411,152.25,152.19,0.34]
[1718254577268,9.85754411,152.24,152.21,8.28]
[1718254578164,9.85754411,152.24,152.2,8.28]
[1718254578669,9.85793956,152.24,152.2,8.28]
[1718254578844,9.85793956,152.24,152.16,54.62624793]
[1718254578845,18.13793956,152.23,152.12,16.24898464]
[1718254579053,18.13793956,152.23,152.17,8.28]
[1718254579369,9.85793956,152.21,152.16,8.28]
[1718254579570,9.85793956,152.2,152.16,8.28]
[1718254579745,9.85793956,152.2,152.12,16.24898464]
[1718254579946,9.85793956,152.2,152.16,8.28]
[1718254580175,9.85793956,152.21,152.16,8.28]
[1718254580473,18.13793956,152.21,152.16,8.28]
[1718254580658,18.13793956,152.21,152.13,20.0]
[1718254580858,9.85793956,152.2,152.16,8.28]
[1718254581548,18.13793956,152.21,152.16,8.28]
[1718254581955,9.85793956,152.21,152.16,8.28]
[1718254582159,9.85793956,152.21,152.17,8.28]
[1718254582466,9.85793956,152.22,152.17,8.28]
[1718254583055,18.13793956,152.22,152.15,0.17]
[1718254583253,8.28,152.22,152.17,8.28]
[1718254583456,18.14008207,152.22,152.17,8.28]
[1718254583866,9.86008207,152.21,152.17,8.28]
[1718254584173,9.86008207,152.22,152.18,8.28]
[1718254584374,18.14008207,152.23,152.18,8.28]
[1718254584750,9.86008207,152.22,152.18,8.28]
[1718254585147,9.86008207,152.22,152.17,8.28]
[1718254585352,18.14008207,152.23,152.17,8.28]
[1718254585657,18.14008207,152.23,152.18,8.28]
[1718254586154,9.86008207,152.23,152.18,8.28]
[1718254586361,18.14008207,152.23,152.18,8.28]
[1718254586571,9.86008207,152.23,152.18,8.28]
[1718254586781,9.86008207,152.23,152.19,8.28]
[1718254587658,33.38968207,152.24,152.19,8.28]